[Event "12th WLC Weekend 2022"]
[Site "Eindhoven"]
[Date "2022.05.14"]
[Round "3.8"]
[White "Becx, Cesar"]
[Black "Zepeda, Lorena"]
[Result "1-0"]
[ECO "A03"]
[WhiteElo "2101"]
[BlackElo "2130"]
[Annotator "TA"]
[PlyCount "137"]
[EventDate "2022.05.13"]
[EventType "swiss"]
[EventCountry "NED"]
[SourceTitle "playchess.com"]
[Source "ChessBase"]
[SourceQuality "1"]
[TimeControl "5400+30"]

{[%evp 15,137,-16,-17,-6,-15,-28,0,0,21,24,47,44,125,37,115,44,147,145,141,-88,-88,-266,281,274,284,283,283,283,303,276,288,276,341,275,307,278,284,229,288,193,187,183,181,179,177,173,172,169,199,194,194,182,177,183,212,188,185,160,206,185,212,210,210,181,216,208,197,181,209,205,220,226,248,236,299,297,327,327,334,329,316,225,309,309,501,502,441,309,560,547,493,465,941,654,654,654,1993,1842,29975,29975,29974,29975,29977,29979,29979,29980,29980,29978,29976,29962,29978,29979,29979,29980,29980,29981,29980,29980,29983,29984,29984,29985,29985,29986]} 1. f4 {[%emt 0:00:02]} c5 {[%emt 0:00:37]} 2. Nf3 {[%emt 0:00:04]} d5 {[%emt 0:01:09]} 3. g3 {[%emt 0:00:05]} Nc6 {[%emt 0:01:09]} 4. Bg2 {[%emt 0:00:04]} g6 {[%emt 0:00:41]} 5. O-O {[%emt 0:00:06]} Bg7 {[%emt 0:00:15]} 6. d3 {[%emt 0:00:04]} Nf6 {[%emt 0:04:44]} 7. c3 {[%emt 0:00:05]} O-O {[%emt 0:00:25]} 8. Na3 {[%emt 0:00:03]} Rb8 {[%emt 0:07:10]} 9. Ne5 {[%emt 0:00:24] A03: Bird's Opening with 1...d5.} Nxe5 {[%emt 0:05:05]} 10. fxe5 {[%emt 0:00:30]} Ne8 {[%emt 0:00:23]} 11. d4 {[%emt 0:12:06] The position is equal.} cxd4 {[%emt 0:06:37]} 12. Qxd4 {[%emt 0:01:21] [#]} e6 $146 {[%emt 0:07:11]} ({Predecessor:} 12... Be6 13. Rd1 Qa5 14. Bg5 f6 15. Be3 fxe5 16. Qxa7 Qd8 17. Bxd5 Bxd5 18. c4 Nf6 19. cxd5 {1-0 (61) Maghsoodloo,P (2656)-Vaibhav,S (2591) Zuerich 2019}) 13. e4 {[%emt 0:04:23]} Qc7 {[%emt 0:23:02]} (13... Nc7 $14) 14. Qxa7 {[%emt 0:34:50]} (14. Bf4 $16) 14... Bxe5 {[%emt 0:09:16]} (14... dxe4 $14 15. Bf4 (15. Bxe4 Bd7 $14) 15... b5 16. Qxc7 Nxc7) 15. Nb5 {[%emt 0:03:38]} (15. exd5 $16 {Nb5 is the strong threat.} b5 16. Qxc7 Nxc7 17. dxe6) 15... Qd8 {[%emt 0:06:30]} (15... Qc4 $14) 16. exd5 {[%emt 0:07:33] [#] Hoping for Bh6.} Bd7 {[%emt 0:12:48]} 17. dxe6 $2 {[%emt 0:05:39] White is much more active. The black rooks are badly placed.} Bxb5 $17 {[%emt 0:01:47]} 18. Qc5 $2 {[%emt 0:00:22]} (18. exf7+ $17 Rxf7 19. Rxf7 Kxf7 20. Be3) 18... Qd6 $4 {[%emt 0:09:43][%mdl 8192]} 19. exf7+ $18 {[%emt 0:03:54] White stays focused until the end.} ({Resist} 19. Qxb5 $6 Qxe6 20. Qb3 (20. Bxb7 Nd6 $17) 20... Nc7 $18) 19... Rxf7 {[%emt 0:00:29]} 20. Qxb5 {[%emt 0:00:07]} Rxf1+ {[%emt 0:00:13]} 21. Qxf1 {[%emt 0:04:17]} ({But not} 21. Bxf1 Ng7 22. Bg5 Nf5 $18) 21... Nf6 {[%emt 0:00:46]} 22. Be3 {[%emt 0:01:21]} Kg7 {[%emt 0:00:48]} 23. Qe2 {[%emt 0:04:43]} b5 {[%emt 0:00:39]} 24. Qd2 {[%emt 0:00:46]} Qe7 {[%emt 0:00:26]} 25. Bh6+ {[%emt 0:03:06]} Kh8 {[%emt 0:00:15]} 26. Re1 {[%emt 0:04:03] Strongly threatening Bf3.} Ng4 {[%emt 0:00:27]} 27. Qe2 {[%emt 0:02:35]} Qc5+ {[%emt 0:00:45]} 28. Be3 {[%emt 0:00:13]} Nxe3 {[%emt 0:00:20]} 29. Qxe3 {[%emt 0:00:10]} Qxe3+ {[%emt 0:00:09]} 30. Rxe3 {[%emt 0:00:10][%mdl 4096] Endgame KRB-KRB} Bd6 {[%emt 0:00:53]} 31. Kf1 {[%emt 0:03:00]} b4 {[%emt 0:00:32]} 32. cxb4 {[%emt 0:01:56]} Rxb4 {[%emt 0:00:21]} 33. Rd3 {[%emt 0:01:27]} Bc5 {[%emt 0:00:38]} 34. b3 {[%emt 0:00:27]} Kg7 {[%emt 0:00:26]} 35. Ke2 {[%emt 0:01:05]} Kf6 {[%emt 0:00:31]} 36. Rc3 {[%emt 0:00:19]} Bd6 {[%emt 0:00:31]} (36... Bg1 $16 {was called for.} 37. h3 Ke5) 37. a3 {[%emt 0:00:48]} Rb8 {[%emt 0:00:39]} 38. b4 {[%emt 0:00:06]} h5 {[%emt 0:00:28]} 39. Rc6 {[%emt 0:01:03]} Ke5 {[%emt 0:00:19]} 40. Ra6 {[%emt 0:00:27]} g5 {[%emt 0:00:20]} 41. h4 {[%emt 0:01:12]} gxh4 {[%emt 0:00:18]} 42. gxh4 {[%emt 0:00:09]} Rg8 {[%emt 0:00:45]} 43. Bf3 {[%emt 0:00:31]} Be7 {[%emt 0:00:41]} 44. Ra5+ {[%emt 0:01:02]} ({Don't take} 44. Bxh5 Kd4 45. b5 Kc5) 44... Kd4 {[%emt 0:00:16]} 45. Rxh5 {[%emt 0:00:52]} Rg1 {[%emt 0:00:26]} 46. Rd5+ {[%emt 0:00:32]} Kc4 {[%emt 0:00:15]} 47. Re5 {[%emt 0:00:14]} Bf6 {[%emt 0:00:32]} 48. Re4+ {[%emt 0:00:40]} Kb5 {[%emt 0:00:18]} 49. Kf2 {[%emt 0:01:14]} Ra1 $2 {[%emt 0:00:09]} (49... Rg7 50. Bd1 Re7) 50. Be2+ {[%emt 0:00:16]} Ka4 {[%emt 0:00:31]} 51. b5+ {[%emt 0:01:00]} Kxa3 $2 {[%emt 0:00:26]} (51... Ka5 52. Kg3 Rxa3+ 53. Kg4 Bb2) 52. h5 {[%emt 0:00:29]} Rc1 {[%emt 0:01:31]} 53. Kg3 {[%emt 0:00:22]} Rc5 {[%emt 0:00:43]} (53... Rc8 $142 54. Kg4 Bh8) 54. Kg4 {[%emt 0:00:13]} Rg5+ {[%emt 0:00:12]} 55. Kf4 {[%emt 0:00:15] Threatens to win with Re6.} Rc5 {[%emt 0:00:06]} 56. b6 {[%emt 0:01:08] Intending b7 and mate.} Bd8 {[%emt 0:01:00]} 57. b7 {[%emt 0:00:43] White mates.} Bc7+ {[%emt 0:00:06]} 58. Kg4 {[%emt 0:00:22]} Rc1 {[%emt 0:00:23]} 59. Re8 {[%emt 0:00:39]} Rg1+ {[%emt 0:00:32]} 60. Kf5 {[%emt 0:00:29]} Re1 {[%emt 0:00:56]} 61. Kg6 {[%emt 0:00:35]} Rg1+ {[%emt 0:00:25]} 62. Kf7 {[%emt 0:00:18]} Re1 {[%emt 0:00:32]} 63. h6 {[%emt 0:00:33]} Rh1 {[%emt 0:00:11]} 64. Kg6 {[%emt 0:00:20]} Rg1+ {[%emt 0:00:18]} 65. Kh5 {[%emt 0:00:19]} Rh1+ {[%emt 0:00:14] [#]} 66. Kg5 $1 {[%emt 0:00:20]} Rh2 {[%emt 0:00:36]} 67. b8=Q {[%emt 0:00:47]} Bxb8 {[%emt 0:00:06]} 68. Rxb8 {[%emt 0:00:09]} Rxe2 {[%emt 0:00:06]} 69. h7 {[%emt 0:00:29] Weighted Error Value: White=0.42/Black=0.63} 1-0

[Event "12th WLC Weekend 2022"]
[Site "Eindhoven"]
[Date "2022.05.14"]
[Round "3.9"]
[White "Roebers, Jan"]
[Black "Boeren, Jurriaan"]
[Result "0-1"]
[ECO "C95"]
[WhiteElo "2126"]
[BlackElo "1778"]
[Annotator "TA"]
[PlyCount "74"]
[EventDate "2022.05.13"]
[EventType "swiss"]
[EventCountry "NED"]
[SourceTitle "playchess.com"]
[Source "ChessBase"]
[SourceQuality "1"]
[TimeControl "5400+30"]

{[%evp 30,74,4,14,25,23,49,22,17,-114,-5,-10,37,34,72,64,122,31,41,2,11,-20,-20,-22,-14,-79,-77,-68,-97,-100,-29,-209,-214,-227,-227,-221,-218,-230,-230,-220,-231,-499,-473,-580,-590,-581,-518]} 1. e4 {[%emt 0:01:21]} e5 {[%emt 0:00:04]} 2. Nf3 {[%emt 0:00:12]} Nc6 {[%emt 0:00:04]} 3. Bb5 {[%emt 0:00:04][%cal Bf1b5,Bb5a4,Ba4b3][%mdl 32]} a6 {[%emt 0:00:05]} 4. Ba4 {[%emt 0:00:05]} Nf6 {[%emt 0:00:05]} 5. O-O {[%emt 0:00:09]} Be7 {[%emt 0:00:05]} 6. Re1 {[%emt 0:00:12]} b5 {[%emt 0:00:04]} 7. Bb3 {[%emt 0:00:04]} d6 {[%emt 0:00:35]} 8. c3 {[%emt 0:00:27]} O-O {[%emt 0:00:06]} 9. h3 {[%emt 0:00:18]} Nb8 {[%emt 0:00:16]} 10. d4 {[%emt 0:00:57]} Nbd7 {[%emt 0:00:08]} 11. Nbd2 {[%emt 0:00:59]} Bb7 {[%emt 0:00:08]} 12. Bc2 {[%emt 0:00:14]} Re8 {[%emt 0:00:09]} 13. Nf1 {[%emt 0:00:59]} Bf8 {[%emt 0:00:23]} 14. Ng3 {[%emt 0:00:10]} g6 {[%emt 0:00:06]} 15. b3 {[%emt 0:04:56]} Bg7 {[%emt 0:01:08] 15...Bg7 was played by the boomers.} 16. d5 {[%emt 0:02:42]} Rc8 {[%emt 0:03:40] C95: Closed Ruy Lopez: Breyer Variation with 10 d4.} 17. c4 {[%emt 0:05:16]} Nb6 {[%emt 0:04:25] [#]} 18. Qe2 $146 {[%emt 0:05:12]} ({Predecessor:} 18. Rb1 c6 19. Bd2 Qc7 20. Bd3 Nbd7 21. Rc1 Qb8 22. Bc2 Qa8 23. Bg5 bxc4 24. bxc4 cxd5 25. cxd5 {1-0 (45) Sasikiran,K (2643)-Lindberg,B (2397) Stockholm 2016}) 18... c6 {[%emt 0:02:43][%cal Rc6d5] The position is equal.} 19. a4 {[%emt 0:05:08]} (19. Be3 $11 {remains equal.}) 19... bxa4 {[%emt 0:05:25]} (19... cxd5 $17 {White must now prevent ...Nxe4.} 20. cxb5 dxe4 21. Bxe4 Nxe4 22. Nxe4 axb5) 20. bxa4 $11 {[%emt 0:00:43]} cxd5 {[%emt 0:00:08]} (20... a5 $11) 21. cxd5 $14 {[%emt 0:00:38]} Nbxd5 {[%emt 0:07:54]} 22. exd5 {[%emt 0:06:03] Threatens to win with Bg5.} Nxd5 {[%emt 0:00:50]} (22... e4 $1 $14 23. Nd4 Nxd5) 23. Ra3 {[%emt 0:06:18]} (23. Bg5 $16 Qd7 24. Qd2) 23... Qc7 {[%emt 0:10:00]} 24. Be4 {[%emt 0:05:24] Threatening Rb3.} Nf4 $1 {[%emt 0:12:33]} 25. Qa2 {[%emt 0:16:49]} d5 {[%emt 0:03:58]} 26. Bb1 {[%emt 0:02:11]} e4 {[%emt 0:12:20]} 27. Nh2 {[%emt 0:03:06] [#]} (27. Bxf4 $11 Qxf4 28. Rae3) 27... d4 $1 $17 {[%emt 0:18:52][%cal Oe4e3] ...e3! is the strong threat. 0x0.001b5a0ed4d3dp-1022s more active pieces.} 28. Bxf4 {[%emt 0:13:50]} Qxf4 {[%emt 0:00:17]} 29. Nhf1 {[%emt 0:01:00][%cal Og3e4]} Bf8 {[%emt 0:01:25] A strong pair of Bishops.} (29... e3 $17 30. fxe3 dxe3) 30. Ne2 $2 {[%emt 0:05:48] This costs White the game.} (30. Rb3 $1 $11 Bd5 31. Bxe4 Bxb3 32. Qxb3) 30... Qe5 $19 {[%emt 0:02:08]} 31. Rg3 {[%emt 0:00:53] [#]} Bb4 $1 {[%emt 0:02:42]} 32. Rd1 {[%emt 0:01:43]} d3 {[%emt 0:00:59] And now ...Bd5 would win.} 33. Ne3 {[%emt 0:04:23] Prevents Bd5.} dxe2 {[%emt 0:00:44]} 34. Qxe2 {[%emt 0:00:02]} Red8 {[%emt 0:02:03][%cal Be8d8,Bd8d2,Bd2e2][%mdl 32]} 35. Rf1 {[%emt 0:02:58]} (35. Rxd8+ {was called for.} Rxd8 36. Nf1) 35... Rd2 {[%emt 0:01:01] Black is clearly winning.} 36. Nc4 {[%emt 0:02:56]} Rxe2 {[%emt 0:01:55]} 37. Nxe5 {[%emt 0:00:02]} Bd6 {[%emt 0:00:32] Weighted Error Value: White=0.56/Black=0.26 (precise)} 0-1

[Event "12th WLC Weekend 2022"]
[Site "Eindhoven"]
[Date "2022.05.14"]
[Round "3.10"]
[White "Van Doren, Bas"]
[Black "Auwens, Michel"]
[Result "1-0"]
[ECO "B09"]
[WhiteElo "2102"]
[BlackElo "1791"]
[Annotator "TA"]
[PlyCount "81"]
[EventDate "2022.05.13"]
[EventType "swiss"]
[EventCountry "NED"]
[SourceTitle "playchess.com"]
[Source "ChessBase"]
[SourceQuality "1"]
[TimeControl "5400+30"]

{[%evp 10,81,76,79,108,100,132,70,66,-6,94,86,160,128,164,117,252,239,362,62,43,48,43,0,0,0,0,0,16,0,0,0,0,0,4,-10,0,0,0,-12,0,-20,0,-118,-119,-116,-118,-97,-68,-75,-77,-72,0,0,33,51,78,77,128,134,137,34,148,148,227,232,303,294,375,374,312,284,442,426]} 1. e4 {[%emt 0:00:02]} d6 {[%emt 0:00:08]} 2. d4 {[%emt 0:00:06]} g6 {[%emt 0:00:02]} 3. Nc3 {[%emt 0:00:27]} Bg7 {[%emt 0:00:07]} 4. f4 {[%emt 0:01:15]} c6 {[%emt 0:00:22]} 5. Nf3 {[%emt 0:01:08]} Nf6 {[%emt 0:01:19]} 6. Bd3 {[%emt 0:02:46]} Qc7 {[%emt 0:01:49] B09: Pirc Defence: Austrian Attack.} 7. O-O {[%emt 0:00:59]} O-O {[%emt 0:01:26]} 8. e5 {[%emt 0:02:23]} (8. Qe1 $16) 8... Nd5 $14 {[%emt 0:04:27] White is slightly better.} 9. Ne4 {[%emt 0:03:26]} (9. Nxd5 $14 cxd5 10. c3) 9... dxe5 {[%emt 0:04:31]} (9... c5 $1 $11 {keeps the balance.}) 10. fxe5 $16 {[%emt 0:01:48] [#]} b5 $146 {[%emt 0:06:00]} (10... Bg4 $142) ({Predecessor:} 10... Nb4 11. Bc4 Bf5 12. Re1 e6 13. c3 Bxe4 14. Rxe4 Nd5 15. Qe1 Qe7 16. Bg5 Qc7 {1-0 (28) Gabriel,J (2113)-Schmidt,M (1816) Gerlingen 2011}) 11. c3 {[%emt 0:01:15]} a5 {[%emt 0:04:41]} 12. Qe1 {[%emt 0:00:45]} (12. Nfg5 $18) 12... Bf5 {[%emt 0:03:03]} (12... f5 $16) 13. Qh4 $18 {[%emt 0:01:17]} f6 {[%emt 0:03:20] [#] Against Nfg5} (13... Qc8 $142 14. Bh6 Bxe4 15. Bxe4 f6 16. Bxg7 Kxg7) 14. exf6 $2 {[%emt 0:15:19]} (14. Neg5 $1 $18 {[%mdl 512]} fxg5 15. Nxg5 $1) 14... exf6 $14 {[%emt 0:00:30]} 15. Bd2 {[%emt 0:03:46]} Nd7 {[%emt 0:04:13]} 16. g4 {[%emt 0:03:12]} g5 {[%emt 0:12:13]} 17. Qh3 {[%emt 0:01:19]} Bg6 {[%emt 0:00:18]} 18. Rae1 {[%emt 0:01:11]} Rae8 {[%emt 0:08:30]} 19. Qg3 {[%emt 0:02:59]} Qxg3+ {[%emt 0:01:59]} 20. hxg3 {[%emt 0:00:09]} N7b6 {[%emt 0:08:40]} 21. b3 {[%emt 0:02:21]} Re7 {[%emt 0:04:22]} 22. Rf2 {[%emt 0:10:58]} Rfe8 {[%emt 0:02:30][%cal Rg6e4,Bf8e8,Be8e7,Be7a7][%mdl 32]} 23. Nd6 {[%emt 0:04:02] Threatens to win with Bxg6.} Rxe1+ {[%emt 0:00:59]} 24. Bxe1 {[%emt 0:00:14] Bxg6 is the strong threat.} Re7 {[%emt 0:08:05]} 25. Bf5 {[%emt 0:10:59]} Bxf5 {[%emt 0:04:08]} 26. gxf5 {[%emt 0:01:08]} (26. Nxf5 $11 Re6 27. Rc2) 26... g4 $17 {[%emt 0:01:05][%cal Bg5g4,Bg4f3][%mdl 32]} 27. c4 {[%emt 0:02:57]} gxf3 {[%emt 0:00:47]} 28. Bxa5 {[%emt 0:00:39]} bxc4 {[%emt 0:07:25]} 29. bxc4 {[%emt 0:00:04]} Ra7 {[%emt 0:02:43]} 30. cxd5 {[%emt 0:01:55]} Nxd5 {[%emt 0:01:36]} ({Black should try} 30... Rxa5 $17 31. dxc6 Ra4 32. Rxf3 Bf8) 31. Nc4 $11 {[%emt 0:00:47]} Re7 {[%emt 0:01:05]} 32. Rxf3 {[%emt 0:00:21]} Bh6 {[%emt 0:00:03]} 33. Kf2 {[%emt 0:01:00] Prevents Re2+.} Re4 {[%emt 0:01:11]} ({Better is} 33... Bf8) 34. Rd3 $16 {[%emt 0:02:36]} Re8 {[%emt 0:01:45]} 35. Bd2 {[%emt 0:03:48]} (35. Kf3 $16) 35... Bf8 {[%emt 0:00:34]} (35... Bxd2 $14 36. Nxd2 (36. Rxd2 Ra8 $14) 36... Ra8) 36. a4 {[%emt 0:01:00]} c5 {[%emt 0:00:08]} (36... h5 $16 37. a5 Rb8) 37. Kf3 $18 {[%emt 0:02:34] aiming for dxc5.} cxd4 {[%emt 0:01:34]} 38. Rxd4 {[%emt 0:00:08]} Ne7 {[%emt 0:00:08]} 39. Rg4+ {[%emt 0:04:26]} Bg7 {[%emt 0:00:33]} 40. Nd6 {[%emt 0:06:43] Hoping for Bh6.} Rd8 {[%emt 0:00:54] [#]} (40... Rb8 {was necessary.} 41. Bh6 Rb3+ 42. Kg2 Ng6 43. fxg6 Bxh6) 41. Bh6 $1 {[%emt 0:00:05] Weighted Error Value: White=0.42/Black=0.42} 1-0

[Event "12th WLC Weekend 2022"]
[Site "Eindhoven"]
[Date "2022.05.14"]
[Round "3.11"]
[White "Suranyi, Pal"]
[Black "Kools, Thomas"]
[Result "1/2-1/2"]
[ECO "D11"]
[WhiteElo "2013"]
[BlackElo "2160"]
[Annotator "TA"]
[PlyCount "68"]
[EventDate "2022.05.13"]
[EventType "swiss"]
[EventCountry "NED"]
[SourceTitle "playchess.com"]
[Source "ChessBase"]
[SourceQuality "1"]
[TimeControl "5400+30"]

{[%evp 15,68,-8,0,7,16,0,14,0,26,33,38,30,31,23,62,68,81,13,27,27,27,27,27,-15,-18,-38,0,0,0,0,0,-38,-38,-38,0,0,-5,-6,0,0,0,0,0,0,0,0,0,0,0,0,0,0,0,0,0]} 1. d4 {[%emt 0:06:36]} d5 {[%emt 0:00:07]} 2. c4 {[%emt 0:00:06]} c6 {[%emt 0:00:05]} 3. Qc2 {[%emt 0:04:20]} Nf6 {[%emt 0:01:23]} 4. Nf3 {[%emt 0:00:14]} g6 {[%emt 0:03:58]} 5. Bf4 {[%emt 0:03:57]} Bf5 {[%emt 0:08:40]} 6. Qb3 {[%emt 0:06:44]} Qb6 {[%emt 0:03:53]} 7. c5 {[%emt 0:00:18]} Qxb3 {[%emt 0:00:06]} 8. axb3 {[%emt 0:00:04]} Nbd7 {[%emt 0:01:43]} 9. Nc3 {[%emt 0:06:54] D11: Slav Defence: 3 Nf3 sidelines and 3...Nf6 4 e3 Bg4.} Bg7 {[%emt 0:02:57]} 10. b4 {[%emt 0:01:19]} O-O {[%emt 0:05:01]} 11. h3 {[%emt 0:01:45]} Ne4 {[%emt 0:07:49]} 12. g4 {[%emt 0:31:48]} Nxc3 {[%emt 0:05:10]} 13. gxf5 {[%emt 0:01:36]} Ne4 {[%emt 0:00:07][%cal Bc3e4,Be4f6,Bf6d7][%mdl 32]} 14. Rg1 {[%emt 0:02:18]} a6 {[%emt 0:02:27]} 15. e3 {[%emt 0:01:30]} Rae8 {[%emt 0:02:17] [#]} 16. Ne5 $146 {[%emt 0:04:22]} (16. h4 $16) ({Predecessor:} 16. h4 e6 17. fxe6 Rxe6 18. Bh3 f5 19. h5 Kf7 {½-½ (19) Claesen,P (2388)-Duhayon,Y (2228) Leuven 2004}) 16... Nef6 {[%emt 0:03:53]} 17. Be2 {[%emt 0:09:10]} Nxe5 {[%emt 0:12:31]} 18. Bxe5 {[%emt 0:00:37]} Nd7 {[%emt 0:06:46]} 19. Bxg7 {[%emt 0:00:47]} Kxg7 {[%emt 0:00:06][%cal Bg8g7,Bg7f6,Bf6e7][%mdl 32]} 20. f4 {[%emt 0:01:13]} e6 {[%emt 0:02:04]} 21. fxg6 {[%emt 0:00:51]} hxg6 {[%emt 0:00:44]} 22. h4 $1 {[%emt 0:00:08]} Kf6 {[%emt 0:01:43]} 23. Kf2 {[%emt 0:08:52]} Rh8 {[%emt 0:01:14]} 24. Rh1 {[%emt 0:00:23]} Ke7 {[%emt 0:03:07]} 25. h5 {[%emt 0:00:39] The position is equal.} gxh5 {[%emt 0:00:10]} 26. Bxh5 {[%emt 0:00:23]} Rh7 {[%emt 0:05:04]} (26... Nf6 $5 27. Bf3 Rxh1 28. Rxh1 Rd8 $11) 27. Bf3 {[%emt 0:00:59]} Reh8 {[%emt 0:00:19]} 28. Rxh7 {[%emt 0:01:08]} Rxh7 {[%emt 0:00:06]} 29. Rh1 {[%emt 0:01:00]} Rxh1 {[%emt 0:02:22]} 30. Bxh1 $11 {[%emt 0:00:03] KB-KN} Kf6 {[%emt 0:04:30]} 31. Bf3 {[%emt 0:00:05]} Kg6 {[%emt 0:00:05]} 32. Kg3 {[%emt 0:01:04]} Nf6 {[%emt 0:00:15]} 33. Bd1 {[%emt 0:02:38]} Ne4+ {[%emt 0:00:26]} 34. Kf3 {[%emt 0:00:28]} f5 {[%emt 0:13:34] Weighted Error Value: White=0.10 (very precise) /Black=0.10 (very precise)} 1/2-1/2

[Event "12th WLC Weekend 2022"]
[Site "Eindhoven"]
[Date "2022.05.14"]
[Round "3.12"]
[White "van der Valk, Niklas"]
[Black "Koster, Chiel"]
[Result "1/2-1/2"]
[ECO "E61"]
[WhiteElo "2200"]
[BlackElo "1924"]
[Annotator "TA"]
[PlyCount "133"]
[EventDate "2022.05.13"]
[EventType "swiss"]
[EventCountry "NED"]
[SourceTitle "playchess.com"]
[Source "ChessBase"]
[SourceQuality "1"]
[TimeControl "5400+30"]

{[%evp 20,133,36,0,24,24,20,16,9,4,24,32,26,18,22,0,0,0,0,-34,-25,-33,-21,-60,-52,-56,-52,-94,-104,-105,0,0,0,0,0,0,32,37,27,15,40,47,49,52,144,128,151,146,177,158,154,154,198,209,199,202,171,170,202,204,212,208,195,0,210,204,212,140,140,117,135,124,122,94,184,129,124,108,123,33,39,29,75,18,30,9,10,8,8,8,8,8,8,0,0,0,0,0,0,0,0,0,0,0,0,0,0,0,0,-8,-8,-8,-8,-8,0,0]} 1. c4 {[%emt 0:00:03]} Nf6 {[%emt 0:00:25]} 2. Nc3 {[%emt 0:00:05]} e5 {[%emt 0:01:19]} 3. Nf3 {[%emt 0:03:00]} Nc6 {[%emt 0:00:47]} 4. g3 {[%emt 0:00:05]} d6 {[%emt 0:00:52]} 5. d4 {[%emt 0:03:49]} exd4 {[%emt 0:06:32]} 6. Nxd4 {[%emt 0:00:11]} Bd7 {[%emt 0:02:37]} 7. Bg2 {[%emt 0:00:18]} g6 {[%emt 0:00:35]} 8. b3 {[%emt 0:01:56]} Bg7 {[%emt 0:00:39]} 9. Bb2 {[%emt 0:01:08]} O-O {[%emt 0:00:43]} 10. O-O {[%emt 0:01:58]} Re8 {[%emt 0:02:35]} 11. e3 {[%emt 0:01:52] [#]} h5 $146 {[%emt 0:04:34] E61: King's Indian: Early deviations for White, including Smyslov System.} ({Predecessor:} 11... Rb8 12. Qd2 Qc8 13. Nd5 Ne4 14. Qc2 Nxd4 15. Bxd4 Bf5 16. Bxg7 Kxg7 17. f3 Nc5 18. Qc3+ Kh6 19. e4 {1-0 (29) Sadovsky,A (2421)-Klimentov,R (2182) Lipetsk 2020}) 12. Nxc6 {[%emt 0:05:26]} Bxc6 {[%emt 0:01:52]} 13. Bxc6 {[%emt 0:05:41]} bxc6 {[%emt 0:00:07]} 14. Qf3 {[%emt 0:05:49]} Ne4 {[%emt 0:02:05]} 15. Nxe4 {[%emt 0:00:47]} Bxb2 {[%emt 0:00:04]} 16. Rab1 {[%emt 0:02:30]} Bg7 {[%emt 0:00:12]} 17. h4 {[%emt 0:08:42]} a5 {[%emt 0:09:55]} 18. Ng5 {[%emt 0:05:25][%cal Be4g5,Bg5h3,Bh3f4][%mdl 32]} Qd7 {[%emt 0:00:07]} 19. c5 {[%emt 0:02:06]} d5 {[%emt 0:02:10] aiming for ...f6.} 20. Kg2 {[%emt 0:04:00]} Qe7 {[%emt 0:02:41]} 21. Rfc1 {[%emt 0:10:11]} Bh6 {[%emt 0:01:16]} 22. Nh3 {[%emt 0:04:40]} d4 {[%emt 0:06:26][%cal Rd4e3]} 23. Rf1 {[%emt 0:07:09]} dxe3 {[%emt 0:02:17]} 24. fxe3 {[%emt 0:00:05]} f5 {[%emt 0:00:19]} ({Don't play} 24... Qxe3 25. Qxf7+ Kh8 26. Qf6+ Kh7 27. Qxc6 Qe2+ 28. Rf2 Qe4+ 29. Qxe4 Rxe4 30. Rd1 $16 (30. Rf7+ Kg8 $16)) ({Don't do} 24... Bxe3 25. Rbe1 $16) (24... Rad8 $17 25. Rb2 Rd5) 25. Qxc6 $11 {[%emt 0:02:09]} Qe4+ {[%emt 0:05:32]} 26. Qxe4 {[%emt 0:00:05]} Rxe4 {[%emt 0:00:03]} 27. Nf4 {[%emt 0:01:44]} Kf7 {[%emt 0:00:17]} 28. Kf2 {[%emt 0:03:36]} Rae8 {[%emt 0:01:25]} 29. Rfe1 {[%emt 0:00:42]} Bf8 {[%emt 0:02:23]} 30. Rbc1 {[%emt 0:01:40]} c6 {[%emt 0:03:01]} 31. Rc3 {[%emt 0:03:31]} a4 {[%emt 0:00:55]} ({Black should play} 31... Rd8 $14) 32. Rd1 $16 {[%emt 0:02:36]} R8e5 {[%emt 0:02:26]} 33. Rd7+ {[%emt 0:05:03]} Ke8 {[%emt 0:00:43] [#]} 34. Rd4 {[%emt 0:01:48]} axb3 {[%emt 0:02:41]} 35. axb3 {[%emt 0:01:25]} Bxc5 {[%emt 0:01:07]} 36. Rxe4 {[%emt 0:00:33]} fxe4 {[%emt 0:00:05]} 37. Nxg6 {[%emt 0:00:54][%mdl 4096] Endgame KRB-KRN} Rf5+ {[%emt 0:00:04]} 38. Nf4 {[%emt 0:00:22]} Kd7 {[%emt 0:00:18]} 39. Rc4 {[%emt 0:01:28]} Re5 {[%emt 0:00:36]} 40. Ng6 {[%emt 0:01:18]} Rf5+ {[%emt 0:00:04]} 41. Nf4 {[%emt 0:02:04]} Re5 $1 {[%emt 0:00:02]} 42. Ke2 {[%emt 0:01:04]} Bb6 {[%emt 0:00:54]} 43. b4 {[%emt 0:01:09]} Kd6 {[%emt 0:00:25]} 44. Kd2 {[%emt 0:00:47]} Ba7 {[%emt 0:00:02]} 45. Ne2 {[%emt 0:00:40]} Kd5 {[%emt 0:01:03]} 46. Rc1 {[%emt 0:00:29]} Rf5 {[%emt 0:02:09] [#]} (46... Kd6 $16) 47. Nf4+ {[%emt 0:00:12]} (47. Ra1 $1 $18 {[%cal Ra1a5]} Rf7 48. Nf4+ Kc4 49. Ke2) 47... Kd6 {[%emt 0:00:14]} 48. Ra1 {[%emt 0:00:46]} Bb6 {[%emt 0:00:15]} 49. Ke2 {[%emt 0:01:19]} (49. Ra8 $16) 49... Rb5 $14 {[%emt 0:00:52]} 50. Ra4 {[%emt 0:00:06]} Kc7 {[%emt 0:03:55]} (50... Ke5 $11) 51. Nh3 {[%emt 0:00:59]} (51. Kf2 $16) 51... Kd6 $11 {[%emt 0:00:41]} 52. Nf2 {[%emt 0:00:18]} (52. Kf2 $5 {[%cal Rh3f4]}) 52... Ke5 {[%emt 0:00:04] The position is equal.} 53. Nd1 {[%emt 0:00:33] Black must now prevent Nc3.} c5 {[%emt 0:00:58]} 54. bxc5 {[%emt 0:00:19]} Rxc5 {[%emt 0:00:13]} 55. Nf2 {[%emt 0:00:48]} Rc2+ {[%emt 0:01:27]} 56. Kf1 {[%emt 0:00:02]} Kf5 {[%emt 0:00:25]} 57. Ra3 {[%emt 0:00:59]} Bc7 {[%emt 0:01:01]} 58. Kg2 {[%emt 0:00:25]} Re2 {[%emt 0:00:45]} 59. Rb3 {[%emt 0:00:19]} Be5 {[%emt 0:00:32]} 60. Ra3 {[%emt 0:00:45]} Bc7 {[%emt 0:00:16]} 61. Ra7 {[%emt 0:00:34]} Bb6 {[%emt 0:01:00]} 62. Rf7+ {[%emt 0:00:29]} Kg6 {[%emt 0:00:07]} 63. Kf1 {[%emt 0:00:29][%csl LRe2,LRe4]} Rxe3 {[%emt 0:00:46]} 64. Rf4 {[%emt 0:00:31]} Rf3 {[%emt 0:00:47]} 65. Rxf3 {[%emt 0:00:33]} exf3 {[%emt 0:00:06]} 66. g4 {[%emt 0:00:25]} hxg4 {[%emt 0:01:17]} 67. Nxg4 {[%emt 0:00:08] Black defended with fortune.  Weighted Error Value: White=0.19 (very precise) /Black=0.12 (very precise)} 1/2-1/2